bitfinex-derivatives/quotes_ETHF0:USTF0_20250501
["timestamp","ask_amount","ask_price","bid_price","bid_amount"]
[1746080153117,3.53623,1811.8,1811.7,1.10388]
[1746080153419,4.39463,1811.8,1811.7,1.10388]
[1746080154213,4.39463,1811.8,1811.7,4.89188]
[1746080156020,4.39463,1811.8,1811.7,3.788]
[1746080158223,1.10388,1811.7,1811.6,1.97249]
[1746080158424,2.75008,1811.7,1811.6,1.97249]
[1746080162730,1.6462,1811.7,1811.6,1.97249]
[1746080163926,2.75008,1811.7,1811.6,1.97249]
[1746080164127,2.75008,1811.7,1811.6,2.77379]
[1746080165831,2.75008,1811.7,1811.6,4.51289]
[1746080167433,1.6462,1811.7,1811.6,4.51289]
[1746080167834,2.75008,1811.7,1811.6,4.51289]
[1746080168330,1.6462,1811.7,1811.6,4.51289]
[1746080168527,4.31158,1811.9,1811.8,1.10381]
[1746080168831,6.73018,1811.9,1811.8,1.10381]
[1746080171132,6.73018,1811.9,1811.8,4.89181]
[1746080172032,5.6264,1811.9,1811.8,4.89181]
[1746080172232,5.6264,1811.9,1811.8,5.69671]
[1746080173728,3.52235,1811.9,1811.8,5.69671]
[1746080173934,3.52235,1811.9,1811.8,4.89181]
[1746080174235,3.52235,1811.9,1811.8,3.788]
[1746080175338,1.10381,1811.8,1811.7,1.10384]
[1746080175532,2.68971,1811.8,1811.7,1.10384]
[1746080175835,1.10397,1811.6,1811.5,1.10396]
[1746080176435,2.68987,1811.6,1811.5,1.10396]
[1746080189043,1.104,1811.5,1811.4,6.35271]
[1746080189239,3.6436,1811.5,1811.4,6.35271]
[1746080190341,3.6436,1811.5,1811.4,4.62001]
[1746080193749,8.63507,1812.2,1811.8,1.10377]
[1746080193938,2.4952,1812.0,1811.9,1.10373]
[1746080194142,3.59893,1812.0,1811.8,1.10377]
[1746080194447,3.59894,1812.0,1811.8,2.68007]
[1746080194645,1.6432,1811.9,1811.8,2.68007]
[1746080195447,2.74695,1811.9,1811.8,2.68007]
[1746080200952,1.6432,1811.9,1811.8,2.68007]
[1746080201152,1.95574,1812.0,1811.9,1.10375]
[1746080201346,1.95574,1812.0,1811.9,3.49915]
[1746080201853,3.66624,1812.0,1811.9,3.49915]
[1746080202549,18.85953201,1812.7,1811.9,6.70695]
[1746080202846,4.39843,1812.4,1812.1,1.10363]
[1746080203052,2.74331,1812.3,1812.2,40.8]
[1746080203754,1.10361,1812.2,1812.1,1.10363]
[1746080203947,3.56341,1812.2,1812.1,1.10363]
[1746080204142,3.56341,1812.2,1812.1,41.90363]
[1746080204553,3.56341,1812.2,1812.1,40.8]
[1746080204762,3.56341,1812.2,1812.1,41.90363]
[1746080205250,3.56341,1812.2,1812.1,40.8]
[1746080206456,6.77121,1812.2,1812.1,40.8]
[1746080206655,1.10369,1812.0,1811.9,4.3001]
[1746080207152,1.10369,1812.0,1811.9,45.1001]
[1746080207354,3.70019,1812.0,1811.9,45.1001]
[1746080207855,3.70019,1812.0,1811.9,46.20385]
[1746080208257,3.70019,1812.0,1811.9,49.99185]
[1746080210166,3.70019,1812.0,1811.9,46.20385]
[1746080211562,3.70019,1812.0,1811.9,45.1001]
[1746080211863,3.70019,1812.0,1811.9,41.5871]
[1746080212863,3.70019,1812.0,1811.9,43.2208]
[1746080213562,3.70019,1812.0,1811.9,44.32455]
[1746080215965,3.70019,1812.0,1811.9,43.2208]
[1746080216265,3.70019,1812.0,1811.4,10.57383993]
[1746080216266,1.104,1811.5,1811.4,10.57383993]
[1746080216463,1.104,1811.5,1811.4,11.44113993]
[1746080216766,4.3118,1811.5,1811.4,7.36603993]
[1746080216963,1.104,1811.5,1811.4,7.36603993]
[1746080217260,4.892,1811.5,1811.4,7.36603993]
[1746080217464,9.7771,1811.5,1811.4,7.36603993]
[1746080217663,6.5693,1811.5,1811.4,7.36603993]
[1746080218055,2.7813,1811.5,1811.4,8.47009993]
[1746080218260,1.10398,1811.6,1811.5,1.104]
[1746080218464,1.10398,1811.6,1811.5,3.5216]
[1746080218867,2.78128,1811.6,1811.5,3.5216]
[1746080220065,2.78128,1811.6,1811.5,2.4176]
[1746080220969,3.61018,1811.6,1811.5,2.4176]
[1746080221168,3.61018,1811.6,1811.5,3.5216]
[1746080221977,3.61018,1811.6,1811.5,2.4176]
[1746080223475,1.10398,1811.6,1811.5,2.4176]
[1746080224163,2.69378,1811.6,1811.5,2.4176]
[1746080224473,2.69378,1811.6,1811.5,3.5216]
[1746080224770,2.69378,1811.6,1811.3,7.5157]
[1746080224771,1.5898,1811.6,1811.3,4.3079]
[1746080224972,1.10406,1811.4,1811.3,0.7969]
[1746080225163,1.10406,1811.4,1811.3,3.788]
[1746080225368,2.69386,1811.4,1811.3,3.788]
[1746080225874,7.69386,1811.4,1811.3,3.788]
[1746080226374,1.10418,1811.2,1811.1,5.0]
[1746080226563,4.31198,1811.2,1811.1,5.0]
[1746080226969,5.11038,1811.2,1811.1,5.0]
[1746080227174,9.33249664,1811.2,1811.1,5.0]
[1746080227476,8.89838,1811.2,1811.1,5.0]
[1746080227877,8.9957811,1811.2,1811.1,5.0]
[1746080228078,10.6072811,1811.2,1811.1,5.0]
[1746080228783,15.6072811,1811.2,1811.1,5.0]
[1746080228971,15.60728577,1811.2,1811.1,5.0]
[1746080230377,10.60728577,1811.2,1811.1,5.0]
[1746080230578,15.60728577,1811.2,1811.1,5.0]
[1746080231282,21.48328577,1811.2,1811.1,5.0]
[1746080231879,16.93148744,1811.2,1811.1,5.0]
[1746080232075,16.83408167,1811.2,1811.1,5.0]
[1746080232282,16.93149239,1811.2,1811.1,5.0]
[1746080233975,1.10424,1811.1,1811.0,5.0]
[1746080234280,7.48475072,1811.1,1811.0,5.0]
[1746080235280,7.48474892,1811.1,1811.0,5.0]
[1746080238785,7.48474892,1811.1,1811.0,3.74586]
[1746080238979,18.36074892,1811.1,1811.0,0.54571]
[1746080239180,1.10455,1810.6,1810.5,2.4539]
[1746080239784,2.84635,1810.6,1810.5,2.4539]
[1746080241187,2.84635,1810.6,1810.5,6.2419]
[1746080242388,2.84635,1810.6,1810.5,2.4539]
[1746080243189,2.84635,1810.6,1810.5,6.2419]
[1746080245986,2.84635,1810.6,1810.5,4.6577]
[1746080246185,1.10467,1810.4,1810.3,42.5035]
[1746080246485,1.10467,1810.4,1810.3,3.3194]
[1746080247280,1.10467,1810.4,1810.3,7.1074]
[1746080249793,2.75727,1810.4,1810.3,7.1074]
[1746080249991,2.75727,1810.4,1810.3,4.6068]
[1746080250389,2.75727,1810.4,1810.3,6.2438]
[1746080250590,2.75727,1810.4,1810.3,7.0774]
[1746080250891,1.10467,1810.4,1810.3,7.0774]
[1746080251083,1.10467,1810.4,1810.3,8.18213]
[1746080251294,1.10467,1810.4,1810.3,7.0774]
[1746080251996,1.10467,1810.4,1810.3,8.18213]
[1746080252495,4.31245,1810.5,1810.4,1.10467]
[1746080252791,1.105,1809.9,1809.7,1.10506]
[1746080252988,3.30522826,1810.5,1809.8,3.68311]
[1746080252989,1.10497,1810.0,1809.8,3.68311]
[1746080253189,1.10491,1810.0,1809.9,2.82663]
[1746080253384,1.10485,1810.2,1810.0,1.10491]
[1746080253585,1.10479,1810.2,1810.1,1.7217]
[1746080254589,1.10479,1810.2,1810.1,2.5741]
[1746080263199,2.71739,1810.2,1810.1,2.5741]
[1746080265002,1.10485,1810.1,1810.0,4.6319]
[1746080265202,2.71745,1810.1,1810.0,3.788]
[1746080266503,5.92525,1810.1,1810.0,3.788]
[1746080266905,7.52235,1810.1,1810.0,3.788]
[1746080267204,1.10497,1809.9,1809.8,40.8]
[1746080267406,1.10503,1809.8,1809.7,2.0]
[1746080267596,2.84763,1809.8,1809.7,2.0]
[1746080268102,2.84763,1809.8,1809.7,46.588]
[1746080268403,4.44473,1809.8,1809.7,46.588]
[1746080268603,4.44473,1809.8,1809.7,5.788]
[1746080271205,4.44473,1809.8,1809.7,7.3648]
[1746080272206,3.64993,1809.8,1809.7,8.4699]
[1746080272508,2.84763,1809.8,1809.7,8.4699]
[1746080272699,1.10503,1809.8,1809.7,8.4699]
[1746080272898,1.10503,1809.8,1809.7,5.788]
[1746080273104,3.68803,1809.8,1809.7,5.788]
[1746080280010,3.68803,1809.8,1809.7,4.57755]
[1746080280219,14.6615142,1809.8,1809.7,3.41264]
[1746080280417,9.6615142,1809.8,1809.7,1.06923]
[1746080280919,1.10534,1809.3,1809.2,5.9999]
[1746080281116,1.10534,1809.3,1809.2,9.7879]
[1746080281317,1.10534,1809.3,1809.2,50.5879]
[1746080281816,2.73714,1809.3,1809.2,9.7879]
[1746080282216,2.73714,1809.3,1809.2,50.5879]
[1746080282411,1.10534,1809.3,1809.2,51.6933]
[1746080282615,1.10532,1809.4,1809.3,1.10532]
[1746080282811,1.10532,1809.4,1809.3,2.70912]
[1746080283212,1.10532,1809.4,1809.3,5.3918]
[1746080285517,2.77642,1809.4,1809.3,5.3918]
[1746080287412,2.77642,1809.4,1809.3,1.35918]
[1746080288220,1.10546,1809.1,1809.0,2.4429]
[1746080288411,1.10546,1809.1,1809.0,0.8235]
[1746080288912,2.77446,1809.1,1809.0,0.8235]
[1746080289108,2.77446,1809.1,1809.0,4.6115]
[1746080290417,2.77446,1809.1,1809.0,6.3067]
[1746080292415,0.8671,1809.3,1809.0,6.3067]
[1746080292611,1.10537,1809.3,1809.1,2.80061]
[1746080292812,1.10537,1809.3,1809.2,1.6952]
[1746080293014,6.7378,1809.4,1809.0,4.6115]
[1746080293215,1.10546,1809.1,1809.0,3.62419]
[1746080293524,1.10546,1809.1,1809.0,1.92899]
[1746080293716,1.10546,1809.1,1809.0,5.13679]
[1746080293912,1.10546,1809.1,1809.0,0.8235]
[1746080294220,1.10546,1809.1,1809.0,4.6115]
[1746080294822,2.74756,1809.1,1809.0,4.6115]
[1746080295723,1.10546,1809.1,1809.0,5.71702]
[1746080296220,1.10543,1809.2,1809.1,1.10542]
[1746080296623,1.10546,1809.1,1809.0,5.71698]
[1746080297424,2.43,1809.3,1809.0,4.6115]
[1746080297625,1.10542,1809.2,1809.1,1.1054]
[1746080300221,1.10546,1809.1,1809.0,8.9248]
[1746080300424,1.10546,1809.1,1809.0,7.8193]
[1746080300828,1.10546,1809.1,1809.0,8.92482]
[1746080302424,2.82686,1809.1,1809.0,8.92482]
[1746080306928,2.82686,1809.1,1809.0,5.71702]
[1746080307226,2.82686,1809.1,1809.0,8.92482]
[1746080308123,1.10541,1809.2,1809.1,1.10546]
[1746080308725,1.6578,1809.3,1809.0,7.8193]
[1746080309028,5.876,1809.6,1809.2,3.2078]
[1746080309227,1.10528,1809.5,1809.4,1.10526]
[1746080309424,2.81288,1809.5,1809.4,1.10526]
[1746080310229,2.81288,1809.5,1809.4,4.89326]
[1746080310824,1.10528,1809.5,1809.4,6.61866]
[1746080313025,3.60111,1809.6,1809.5,1.10522]
[1746080313225,2.81281,1809.6,1809.5,2.80852]
[1746080314223,2.81281,1809.6,1809.5,6.59652]
[1746080316133,1.10513,1809.7,1809.6,1.10516]
[1746080316320,1.10516,1809.6,1809.5,4.89318]
[1746080318436,2.70124,1809.7,1809.6,1.10516]
[1746080318638,2.70124,1809.7,1809.6,1.91116]
[1746080319537,2.70124,1809.7,1809.6,0.806]
[1746080320135,1.10516,1809.6,1809.5,4.89317]
[1746080320340,1.10516,1809.6,1809.5,5.68627]
[1746080321430,2.70124,1809.7,1809.6,1.10516]
[1746080321841,1.5961,1809.7,1809.6,1.10516]
[1746080322035,2.7012,1809.7,1809.6,1.10516]
[1746080322334,2.7012,1809.7,1809.5,4.5811]
[1746080322335,1.10516,1809.6,1809.5,5.68628]
[1746080322633,2.83196,1809.6,1809.5,5.68628]
[1746080323336,2.83196,1809.6,1809.5,3.788]
[1746080324231,6.03976,1809.6,1809.5,3.788]
[1746080328140,11.03976,1809.6,1809.5,3.788]
[1746080329336,11.13712744,1809.6,1809.5,3.788]
[1746080329640,11.03976,1809.6,1809.5,3.788]
[1746080330142,1.10546,1809.1,1809.0,1.93148]
[1746080330339,1.10544,1809.2,1809.1,1.10545]
[1746080330544,1.10544,1809.2,1809.1,1.94665]
[1746080330739,1.10544,1809.2,1809.1,3.61275]
[1746080331345,1.1054,1809.2,1809.1,3.61272]
[1746080332240,1.1054,1809.2,1809.1,2.5073]
[1746080332441,1.10546,1809.1,1809.0,7.8218]
[1746080332745,1.89986,1809.1,1809.0,8.92732]
[1746080332943,1.89986,1809.1,1809.0,10.59342]
[1746080333135,1.89986,1809.1,1809.0,9.4879]
[1746080333335,3.49276,1809.1,1809.0,9.4879]
[1746080333530,2.69836,1809.1,1809.0,7.8218]
[1746080333742,2.69836,1809.1,1809.0,3.788]
[1746080337637,2.69836,1809.1,1809.0,5.465]
[1746080338949,1.10546,1809.1,1809.0,5.465]
[1746080340145,1.10546,1809.1,1809.0,6.57052]
[1746080340347,1.10546,1809.1,1809.0,5.465]
[1746080341042,1.10546,1809.1,1809.0,6.57052]
[1746080341550,1.10546,1809.1,1809.0,5.465]
[1746080341740,1.10546,1809.1,1809.0,6.57052]
[1746080343447,1.10546,1809.1,1809.0,5.465]
[1746080344349,1.10546,1809.1,1809.0,8.6728]
[1746080344744,1.10546,1809.1,1809.0,9.77832]
[1746080345051,1.34516,1810.4,1809.9,1.10495]
[1746080345346,15.67873201,1810.1,1810.0,46.4867]
[1746080345548,15.67873201,1810.1,1810.0,40.8]
[1746080345946,1.10497,1809.9,1809.8,6.7358]
[1746080346244,1.10497,1809.9,1809.8,3.788]
[1746080346442,6.10497,1809.9,1809.8,3.788]
[1746080346642,6.94467,1809.9,1809.8,3.788]
[1746080346846,12.24197744,1809.9,1809.8,1.85936]
[1746080347151,1.10534,1809.3,1809.2,4.0811]
[1746080347353,3.2078,1809.6,1809.2,46.487]
[1746080347647,1.10534,1809.3,1809.2,55.9374491]
[1746080348250,1.10534,1809.3,1809.2,59.7254491]
[1746080348453,2.68454,1809.3,1809.2,59.7254491]
[1746080349144,2.68454,1809.3,1809.2,61.3866491]
[1746080350552,2.68454,1809.3,1809.2,62.4920491]
[1746080351046,1.10534,1809.3,1809.2,51.4357]
[1746080353451,1.6103,1809.4,1809.2,51.4357]
[1746080353655,1.10528,1809.4,1809.3,1.6692]
[1746080354150,1.10528,1809.4,1809.3,5.4572]
[1746080355754,2.76868,1809.4,1809.3,5.4572]
[1746080356357,2.76868,1809.4,1809.3,3.788]
[1746080356558,3.57118,1809.4,1809.3,3.788]
[1746080368454,1.10528,1809.4,1809.3,3.788]
[1746080368654,1.10528,1809.4,1809.3,7.33074]
[1746080370260,2.70935,1809.5,1809.4,1.10528]
[1746080370563,1.10525,1809.5,1809.4,2.77698]
[1746080371162,1.10521,1809.6,1809.5,1.10521]
[1746080371567,1.10522,1809.5,1809.4,8.46123]
[1746080371864,1.10522,1809.6,1809.5,1.10522]
[1746080372058,1.10522,1809.6,1809.5,4.89322]
[1746080375268,1.10516,1809.6,1809.5,4.89322]
[1746080375569,1.10516,1809.6,1809.5,3.788]
[1746080376968,1.10516,1809.6,1809.5,4.89322]
[1746080378764,2.70346,1809.6,1809.5,3.788]
[1746080379070,3.56736,1809.6,1809.5,3.788]
[1746080380370,3.56736,1809.6,1809.5,4.89322]
[1746080380870,1.10516,1809.6,1809.5,4.89322]
[1746080384372,2.75375,1809.7,1809.6,1.10516]
[1746080384573,2.75375,1809.7,1809.6,1.94636]
[1746080386572,1.92468,1809.8,1809.7,1.1051]
[1746080386775,1.1051,1809.7,1809.6,1.94631]
[1746080388574,3.60078,1809.8,1809.7,1.1051]
[1746080389168,2.78118,1809.8,1809.7,5.7074]
[1746080391175,2.78118,1809.8,1809.7,7.3739]
[1746080396083,2.78118,1809.8,1809.7,6.2688]
[1746080396277,2.78118,1809.8,1809.7,3.788]
[1746080396477,3.60738,1809.8,1809.7,3.788]
[1746080398587,3.60738,1809.8,1809.7,4.8931]
[1746080399872,3.60738,1809.8,1809.7,6.5578]
[1746080400389,1.6761,1809.8,1809.7,6.5578]
[1746080400581,1.6761,1809.8,1809.7,13.3106]
[1746080401886,2.78113,1809.8,1809.7,13.3106]
[1746080407989,1.6761,1809.8,1809.7,13.3106]
[1746080409188,2.78113,1809.8,1809.7,10.5408]
[1746080409391,2.78113,1809.8,1809.7,6.9958]
[1746080409592,2.78113,1809.8,1809.7,8.1009]
[1746080411397,1.6761,1809.8,1809.7,8.1009]
[1746080414689,1.6761,1809.8,1809.7,4.8931]
[1746080416490,2.78113,1809.8,1809.7,4.8931]
[1746080417493,1.6761,1809.8,1809.7,4.8931]
[1746080419390,1.6761,1809.8,1809.7,10.6747]
[1746080419590,1.7051,1810.0,1809.9,1.10497]
[1746080419990,2.81001,1810.0,1809.9,1.10497]
[1746080420191,2.81001,1810.0,1809.9,4.89297]
[1746080420388,1.7051,1810.0,1809.9,4.89297]
[1746080420892,4.39521,1810.0,1809.9,4.89297]
[1746080421091,3.2903,1810.0,1809.9,4.89297]
[1746080421597,4.39521,1810.0,1809.9,4.89297]
[1746080423988,3.2903,1810.0,1809.9,4.89297]
[1746080424994,3.53131,1810.0,1809.9,4.89297]
[1746080425393,2.4264,1810.0,1809.9,4.89297]
[1746080426296,2.4264,1810.0,1809.9,5.73677]
[1746080426592,5.10693,1810.2,1810.1,1.10485]
[1746080427100,1.10491,1810.0,1809.9,1.10497]
[1746080428197,1.10491,1810.0,1809.9,4.89297]
[1746080428501,1.92881,1810.0,1809.9,4.89297]
[1746080430707,0.8239,1810.0,1809.9,4.89297]
[1746080431204,2.5319,1810.0,1809.9,4.89297]
[1746080435108,3.63681,1810.0,1809.9,4.89297]
[1746080435310,2.5319,1810.0,1809.9,4.89297]
[1746080435505,2.5319,1810.0,1809.9,6.57057]
[1746080436610,3.63681,1810.0,1809.9,6.57057]
[1746080438312,3.63681,1810.0,1809.9,4.89297]
[1746080441311,2.5319,1810.0,1809.9,4.89297]
[1746080441509,3.63681,1810.0,1809.9,6.60907]
[1746080442909,3.63681,1810.0,1809.9,4.89297]
[1746080446516,3.63681,1810.0,1809.9,3.788]
[1746080447319,3.63681,1810.0,1809.9,4.89297]
[1746080451724,3.63681,1810.0,1809.9,6.55607]
[1746080451919,2.5319,1810.0,1809.9,6.55607]
[1746080452331,1.708,1810.0,1809.9,6.55607]
[1746080455423,1.6005,1810.2,1810.1,1.10485]
[1746080455627,3.3441,1810.2,1810.1,1.10485]
[1746080455930,3.3441,1810.2,1810.0,3.64087]
[1746080456133,4.44894,1810.2,1810.0,7.42887]
[1746080456440,1.10485,1810.1,1810.0,7.42887]
[1746080456635,2.84845,1810.1,1810.0,7.42887]
[1746080457541,2.84845,1810.1,1810.0,3.788]
[1746080458836,31.31251005,1811.1,1810.1,2.76214]
[1746080459038,33.79881005,1811.1,1810.6,3.2078]
[1746080459234,1.10442,1810.8,1810.7,40.8]
[1746080459740,1.94802,1810.8,1810.7,40.8]
[1746080459944,3.56842,1810.8,1810.7,40.8]
[1746080460333,3.56842,1810.8,1810.5,5.4891]
[1746080460540,1.6204,1810.7,1810.6,1.10455]
[1746080460743,1.6204,1810.7,1810.6,41.90455]
[1746080464242,1.6204,1810.7,1810.6,44.37665]
[1746080466440,0.8436,1810.8,1810.7,1.10448]
[1746080466640,0.8436,1810.8,1810.7,2.71298]
[1746080467145,2.5608,1810.8,1810.7,6.50098]
[1746080470143,5.876,1811.6,1811.2,1.10414]
[1746080470444,4.31182,1811.5,1811.0,5.96851]
[1746080470643,6.01952,1811.5,1811.3,1.10407]
[1746080470846,1.7142,1811.4,1811.3,1.10407]
[1746080471149,1.7142,1811.4,1811.3,4.89207]
[1746080471748,2.81826,1811.4,1811.3,3.788]
[1746080472147,2.81826,1811.4,1811.2,1.10416]
[1746080472347,4.47032,1811.3,1811.2,1.10416]
[1746080472850,3.3662,1811.3,1811.2,1.10416]
[1746080474151,4.47032,1811.3,1811.2,1.10416]
[1746080475141,3.3662,1811.3,1811.2,1.10416]
[1746080476148,3.3662,1811.3,1811.2,4.89216]
[1746080478154,3.3662,1811.3,1811.2,1.10416]
[1746080478357,1.10422,1811.2,1811.1,1.10423]
[1746080478556,2.77572,1811.2,1811.1,1.10423]
[1746080478750,1.10424,1811.1,1811.0,48.90004]
[1746080478947,2.77574,1811.1,1811.0,48.90004]
[1746080479654,1.6715,1811.1,1811.0,48.90004]
[1746080480757,2.77574,1811.1,1811.0,48.90004]
[1746080483256,2.77574,1811.1,1811.0,45.69224]
[1746080483955,1.6715,1811.1,1811.0,45.69224]
[1746080484154,1.6715,1811.1,1811.0,47.34374]
[1746080485749,2.75617,1811.3,1811.1,1.10419]
[1746080485950,1.6342,1811.2,1811.1,2.83849]
[1746080486757,1.6342,1811.2,1811.1,3.64039]
[1746080487359,2.73838,1811.2,1811.1,1.10419]
[1746080488163,1.6342,1811.2,1811.1,1.10419]
[1746080488761,1.6342,1811.2,1811.1,2.83849]
[1746080489959,1.6342,1811.2,1811.1,43.63849]
[1746080494276,2.73838,1811.2,1811.1,43.63849]
[1746080496071,1.6342,1811.2,1811.1,43.63849]
[1746080496373,1.89897,1811.3,1811.2,1.10418]
[1746080496571,0.7948,1811.3,1811.2,1.10418]
[1746080496870,0.7948,1811.3,1811.2,4.38658]
[1746080497065,0.7948,1811.3,1811.2,8.17458]
[1746080498571,2.4814,1811.3,1811.2,8.17458]
[1746080498868,3.58552,1811.3,1811.2,8.17458]
[1746080499265,1.6866,1811.3,1811.2,8.17458]
[1746080499668,2.79072,1811.3,1811.2,8.17458]
[1746080504476,1.6866,1811.3,1811.2,8.17458]
[1746080505478,1.6866,1811.3,1811.2,48.97458]
[1746080509786,1.6521,1811.5,1811.4,1.10406]
[1746080509984,4.3393,1811.5,1811.4,1.10406]
[1746080510188,4.3393,1811.5,1811.4,4.89206]
[1746080510482,3.5095,1811.5,1811.4,4.89206]
[1746080511186,3.5095,1811.5,1811.4,3.788]
[1746080512187,1.10406,1811.4,1811.3,1.10408]
[1746080512485,2.82266,1811.4,1811.3,1.10408]
[1746080513186,2.82266,1811.4,1811.3,4.89208]
[1746080523495,0.8223,1811.5,1811.4,1.10406]
[1746080523693,1.10402,1811.5,1811.4,2.71476]
[1746080524079,2.83022,1811.5,1811.4,6.50276]
[1746080525790,2.83022,1811.5,1811.4,4.89206]
[1746080526192,2.83022,1811.5,1811.4,1.10406]
[1746080526896,1.1041,1811.4,1811.3,1.10408]
[1746080527193,3.7168,1811.4,1811.3,1.10408]
[1746080528092,3.7168,1811.4,1811.3,4.89208]
[1746080528294,2.6127,1811.4,1811.3,4.89208]
[1746080528692,3.71676,1811.4,1811.3,4.89208]
[1746080529092,3.71676,1811.4,1811.3,3.788]
[1746080529295,1.10412,1811.3,1811.2,41.90417]
[1746080529494,3.57182,1811.3,1811.2,41.90417]
[1746080529793,3.57182,1811.3,1811.2,1.10417]
[1746080530189,3.57182,1811.3,1811.2,4.89217]
[1746080531398,2.4677,1811.3,1811.2,4.89217]
[1746080532389,3.57182,1811.3,1811.2,4.89217]
[1746080543510,3.57182,1811.3,1811.2,3.788]
[1746080544308,6.77962,1811.3,1811.2,3.788]
[1746080544611,17.75299786,1811.3,1811.2,1.93534001]
[1746080545202,1.1043,1811.0,1810.9,40.8]
[1746080545403,1.10436,1810.9,1810.8,7.37813922]
[1746080545909,1.10436,1810.9,1810.8,48.17813922]
[1746080546111,1.10436,1810.9,1810.8,46.1906]
[1746080547006,2.71276,1810.9,1810.8,46.1906]
[1746080549110,2.71276,1810.9,1810.8,42.4026]
[1746080550613,3.54186,1810.9,1810.8,42.4026]
[1746080551111,3.54186,1810.9,1810.8,40.8]
[1746080553622,3.54186,1810.9,1810.8,42.3851]
[1746080554117,3.54186,1810.9,1810.8,46.1731]
[1746080557610,2.71276,1810.9,1810.8,47.0345]
[1746080564617,2.71276,1810.9,1810.8,44.588]
[1746080564818,3.52636,1810.9,1810.8,44.588]
[1746080565117,3.52636,1810.9,1810.8,40.8]
[1746080565509,2.71276,1810.9,1810.8,43.268]
[1746080566316,2.71276,1810.9,1810.8,47.056]
[1746080569020,2.71276,1810.9,1810.8,6.256]
[1746080569715,2.71276,1810.9,1810.8,5.4372]
[1746080570218,2.76107,1810.8,1810.5,3.2078]
[1746080570423,1.10461,1810.5,1810.4,6.2435]
[1746080570922,4.31241,1810.5,1810.4,3.788]
[1746080571121,3.2078,1810.5,1810.2,9.81073922]
[1746080571422,1.10473,1810.3,1810.2,9.81073922]
[1746080572213,1.10473,1810.3,1810.2,13.59873922]
[1746080572723,1.10473,1810.3,1810.2,6.2206]
[1746080582429,1.10473,1810.3,1810.2,7.32539]
[1746080583123,1.10473,1810.3,1810.2,6.2206]
[1746080583730,1.10473,1810.3,1810.2,7.32539]
[1746080586933,1.10473,1810.3,1810.2,6.2206]
[1746080587735,1.10473,1810.3,1810.2,3.788]
[1746080587936,1.90843,1810.3,1810.2,3.788]
[1746080591637,3.58053,1810.3,1810.2,3.788]
[1746080592235,6.78833,1810.3,1810.2,3.788]
[1746080592932,6.88574222,1810.3,1810.2,3.788]
[1746080593137,1.10497,1809.9,1809.8,9.2427]
[1746080593336,1.10497,1809.9,1809.8,10.34773]
[1746080593531,1.10497,1809.9,1809.8,9.2427]
[1746080593726,1.10497,1809.9,1809.8,10.34773]
[1746080593933,3.276,1810.0,1809.8,10.34773]
[1746080594237,1.10497,1809.9,1809.8,14.97843]
[1746080594437,1.10497,1809.9,1809.8,13.26053]
[1746080595131,3.52114,1810.0,1809.9,1.10497]
[1746080595340,1.10494,1810.0,1809.9,1.10497]
[1746080596235,1.10494,1810.0,1809.9,4.89297]
[1746080597226,1.10494,1810.0,1809.9,3.788]
[1746080600137,1.10494,1810.0,1809.9,4.89297]
[1746080602531,1.10494,1810.0,1809.9,3.788]
[1746080603538,1.10494,1810.0,1809.9,4.89297]
[1746080604639,1.10494,1810.0,1809.9,3.788]
[1746080604938,1.96164,1810.0,1809.9,3.788]
[1746080605340,1.96164,1810.0,1809.9,4.89297]
[1746080605837,2.8486,1810.1,1810.0,1.10491]
[1746080606042,1.1049,1810.1,1810.0,1.10491]
[1746080606345,1.1049,1810.1,1810.0,1.95581]
[1746080607142,1.1049,1810.1,1810.0,5.74381]
[1746080607339,4.31262,1810.2,1810.1,1.10485]
[1746080607535,4.31262,1810.2,1810.1,1.91605]
[1746080607737,3.2078,1810.2,1810.1,1.91605]
[1746080608339,4.31259,1810.2,1810.1,1.91605]
[1746080609538,1.10479,1810.2,1810.1,1.91605]
[1746080611244,1.10479,1810.2,1810.1,3.56135]
[1746080611449,2.80778,1810.3,1810.2,1.10479]
[1746080611644,2.80778,1810.3,1810.2,2.75009]
[1746080611945,2.80778,1810.3,1810.2,3.61029]
[1746080612146,2.80778,1810.3,1810.2,7.39829]
[1746080615551,4.31245,1810.5,1810.4,1.10467]
[1746080616339,5.93275,1810.5,1810.4,6.59697]
[1746080623355,5.93275,1810.5,1810.4,3.788]
[1746080632565,10.93275,1810.5,1810.4,3.788]
[1746080632772,11.03015057,1810.5,1810.4,3.788]
[1746080633272,1.10485,1810.1,1810.0,1.92051]
[1746080634072,1.10485,1810.1,1810.0,5.70851]
[1746080634369,2.83655,1810.1,1810.0,5.70851]
[1746080637874,2.83655,1810.1,1810.0,4.6036]
[1746080638574,2.83655,1810.1,1810.0,5.70851]
[1746080639076,2.83655,1810.1,1810.0,4.6036]
[1746080641382,3.62605,1810.1,1810.0,3.788]
[1746080643581,1.10485,1810.1,1810.0,3.788]
[1746080643777,1.10485,1810.1,1810.0,5.4204]
[1746080643977,1.10485,1810.1,1810.0,7.0889]
[1746080649782,1.10485,1810.1,1810.0,3.788]
[1746080649990,2.80705,1810.1,1810.0,3.788]
[1746080654085,6.01485,1810.1,1810.0,3.788]
[1746080670305,1.10491,1810.0,1809.9,3.788]